Cogmind - Beta 14 @@@ ROGUE MODE // 2024.11.03 @ 23:45:09 Player: OG DANIEL Result: Destroyed by Y-45 Defender with Heavy Assault Rifle Performance ------------- Evolutions (1) 500 Regions Visited (4) 800 Robots Destroyed (59) 295 Value Destroyed (1210) 1210 Prototype IDs (1) 20 Alien Tech Used (0) 0 Bonus (38) 38 TOTAL SCORE: 2863 Bonus ------- High Alert Combat Kills 38 Cogmind --------- Core Integrity 0/400 Matter 222/300 Energy 77/100 System Corruption 9% Temperature Cool (0) Movement Treading (160) Location -9/Storage Parts ------- > --- POWER (1) -------- (None) > --- PROPULSION (3) --- Light Treads Light Treads Light Treads > --- UTILITY (3) ------ Large Storage Unit Light Armor Plating > --- WEAPON (2) ------- Small Laser Small Laser > --- INVENTORY (15) --- Ion Engine Light Treads Light Treads Heat Sink Beam Rifle Light Assault Rifle Grenade Launcher Grenade Launcher Grenade Launcher Rocket Launcher Rocket Launcher Rocket Launcher Rocket Launcher Mini Grenade Launcher Peak State ------------ > --- POWER ------------ Heavy Ion Engine > --- PROPULSION ------- Light Treads Light Treads Aluminum Leg > --- UTILITY ---------- Large Storage Unit Medium Armor Plating Medium Armor Plating > --- WEAPON ----------- Rocket Launcher Mini Grenade Launcher > --- INVENTORY -------- Ion Engine Light Treads Light Treads Medium Armor Plating Light Assault Rifle Light Assault Rifle Grenade Launcher Grenade Launcher Rocket Launcher Rocket Launcher Rocket Launcher Rocket Launcher [Rating: 16] Favorites ----------- Power Ion Engine Engine Ion Engine Propulsion Light Treads Treads Light Treads Leg Aluminum Leg Utility Large Storage Unit Device Improved Terrain Scanner Storage Large Storage Unit Protection Medium Armor Plating Weapon Light Assault Rifle Energy Gun Small Laser Ballistic Gun Light Assault Rifle Launcher Rocket Launcher Build | -11 -10 -10 -9 -9 ------- Run | Yrd Mat Min Mat Sto Slots Evolved 2 | . . . 2 . Power . | . . . . . Propulsion 1 | . . . 1 . Utility 1 | . . . 1 . Weapon . | . . . . . Parts Attached 49 | 8 4 . 23 14 Power 4 | 1 . . 2 1 Engine 4 | 1 . . 2 1 Core . | . . . . . Reactor . | . . . . . Propulsion 13 | 2 . . 7 4 Treads 11 | 2 . . 5 4 Leg 2 | . . . 2 . Wheel . | . . . . . Hover . | . . . . . Flight . | . . . . . Utility 8 | 3 1 . 2 2 Device 2 | 2 . . . . Storage 2 | 1 1 . . . Processor . | . . . . . Hackware . | . . . . . Protection 4 | . . . 2 2 Artifact . | . . . . . Weapon 24 | 2 3 . 12 7 Energy Gun 4 | 2 . . . 2 Energy Cannon . | . . . . . Ballistic Gun 11 | . 2 . 6 3 Ballistic Cannon . | . . . . . Launcher 9 | . 1 . 6 2 Special Weapon . | . . . . . Impact Weapon . | . . . . . Slashing Weapon . | . . . . . Piercing Weapon . | . . . . . Special Melee Weapon . | . . . . . Unidentified Prototypes 1 | . . . 1 . Parts Lost 10 | . . . 6 4 Power 3 | . . . 2 1 Propulsion 2 | . . . 1 1 Utility 3 | . . . 3 . Weapon 2 | . . . . 2 Highest Loss Streak 2 | . . . 2 1 To Critical Strikes . | . . . . . Average Slot Usage (%) 86 | . 100 100 78 67 Engine 10 | . 14 14 10 3 Treads 23 | . 28 28 17 28 Leg 2 | . . . 7 . Device 8 | . 14 14 6 . Storage 12 | . 14 14 11 11 Protection 2 | . . . 4 4 Energy Gun 5 | . 13 . . 6 Ballistic Gun 16 | . 13 28 18 8 Launcher 2 | . 1 . 2 5 Peak Build Rating 16 | 9 10 10 16 11 Average Rating 9 | 6 9 10 10 7 On Entrance 7 | . 9 10 10 7 Naked Turns . | . . . . . Heaviest Build 50 | 14 30 28 50 37 Greatest Support 60 | 40 40 40 40 60 Greatest Overweight (x) 2 | . . . 2 . Average Overweight (x) . | . . . . . Largest Inventory Capacity 15 | 8 15 15 15 15 Average Capacity 13 | 7 10 15 15 15 Most Carried 15 | 7 10 9 15 14 Average Carried 9 | 5 8 9 11 10 Final Capacity 15 | 8 15 15 15 15 Final Carried 14 | 7 9 9 12 14 Class Distribution -------------------- 89% | Mutant 10% | Scavenger-Mutant Dominant Class ---------------- Mutant | -10/Materials Mutant | -10/Mines Mutant | -9/Materials Scavenger-Mutant | -9/Storage Resources | -11 -10 -10 -9 -9 ----------- Run | Yrd Mat Min Mat Sto Matter Collected 1126 | 280 84 36 285 441 Remotely . | . . . . . Salvage Created 2018 | 149 297 . 865 707 Parts 147 | 16 33 . 47 51 Haulers Intercepted 2 | . . . 1 1 Recyclers Shooed 6 | . . . 4 2 Parts Field Recycled . | . . . . . Retrieved Matter . | . . . . . Parts Self-Destructed . | . . . . . Prevented . | . . . . . Kills | -11 -10 -10 -9 -9 ------- Run | Yrd Mat Min Mat Sto Combat Hostiles Destroyed 30 | . 10 . 10 10 Guns 24 | . 10 . 6 8 AOE 6 | . . . 4 2 Classes Destroyed 11 | 3 4 . 4 . Worker 4 | 1 . . 1 2 Builder 7 | . 2 . 3 2 Tunneler 2 | 2 . . . . Hauler 2 | . . . 1 1 Recycler 8 | 1 . . 5 2 Mechanic 1 | . . . 1 . Operator 1 | . . . 1 . Watcher 4 | . 1 . 2 1 Swarmer 6 | . 6 . . . Grunt 17 | . 4 . 7 6 Sentry 7 | . . . 3 4 Best Kill Streak 8 | 3 3 . 8 4 Combat Bots Only 4 | . 2 . 3 4 Max Kills in Single Turn 3 | 1 1 . 3 2 Gunslinging . | . . . . . Exploded 2 | . . . 2 1 Melee . | . . . . . Uniques/NPCs Destroyed . | . . . . . Combat | -11 -10 -10 -9 -9 -------- Run | Yrd Mat Min Mat Sto Hostile Shots Fired 207 | . 49 . 72 86 Missed 55 | . 14 . 18 23 Damage Taken 2438 | . 389 . 1115 934 Core 473 | . 73 . 199 201 Absorbed by Shields . | . . . . . Regen/Repaired (Parts) 45 | . . . 45 . Core Remaining (%) 85 | 100 . 70 . . Volleys Fired 189 | 9 39 1 76 64 Largest 2 | 2 2 2 2 2 Hottest 90 | 90 90 40 66 80 Shots Fired 326 | 18 79 3 137 89 Gun 301 | 18 77 3 121 82 Cannon . | . . . . . Launcher 25 | . 2 . 16 7 Special . | . . . . . Kinetic 205 | . 33 3 121 48 Thermal 96 | 18 44 . . 34 Explosive 25 | . 2 . 16 7 Electromagnetic . | . . . . . Robot Hit Streak 12 | 6 10 . 12 8 Robot Miss Streak 5 | 5 3 4 3 3 Penetration Max . | . . . . . Secondary Targets 1 | . . . . 1 Max Gunslinging Chain 1 | . . . . 1 Shots Hit Robots 185 | 9 43 . 80 53 Core Hits 114 | 5 19 . 51 39 Critical Kills 4 | . 1 . 2 1 Critical Parts Destroyed . | . . . . . Critical Strikes 6 | 1 2 . 2 1 Burn 2 | 1 1 . . . Destroy 4 | . 1 . 2 1 Melee Attacks . | . . . . . Impact . | . . . . . Slashing . | . . . . . Piercing . | . . . . . Sneak Attacks . | . . . . . Combat Hostiles . | . . . . . Follow-up Attacks . | . . . . . Damage Inflicted 3061 | 121 535 . 1449 956 Guns 1726 | 121 466 . 631 508 Cannons . | . . . . . Explosions 1329 | . 69 . 816 444 Melee . | . . . . . Ramming 6 | . . . 2 4 Kinetic 1008 | . 130 . 631 247 Thermal 718 | 121 336 . . 261 Explosive 1329 | . 69 . 816 444 Electromagnetic . | . . . . . Impact . | . . . . . Slashing . | . . . . . Piercing . | . . . . . Highest Corruption 9 | . 7 7 9 9 Average Corruption 5 | . 6 7 3 9 Corruption Purged . | . . . . . Corruption Blocked . | . . . . . Effects 44 | . 2 11 17 14 Message Errors 9 | . . 3 4 2 Matter Fused 12 | . 1 3 4 4 Heat Flow Errors 3 | . . . 1 2 Energy Discharges 5 | . . 3 1 1 Parts Rejected 1 | . . . . 1 Data Loss (minor) 4 | . . 1 2 1 Data Loss (major) 2 | . . . 2 . Misfires 5 | . 1 1 . 3 Alerts 2 | . . . 2 . Weapon Failures 1 | . . . 1 . Overload Shots . | . . . . . Overflow Damage 12 | . . . 12 . Projectiles . | . . . . . Explosions 12 | . . . 12 . Melee . | . . . . . Knockbacks . | . . . . . Impact . | . . . . . Kinetic . | . . . . . Secondary . | . . . . . Self-Inflicted Damage 237 | . 45 . 100 92 Shots 7 | . 1 . 4 2 Rammed 2 | . . . 1 1 Targets Rammed 2 | . . . 1 1 Kicked . | . . . . . Crushed . | . . . . . Highest Temperature 327 | 120 327 2 254 252 Average Temperature 73 | 38 111 2 60 49 Received Heat Transfer 921 | . 150 . 390 381 Siege Activations . | . . . . . Robots Corrupted . | . . . . . Combat Hostiles . | . . . . . Parts Fried . | . . . . . Impact Corruptions . | . . . . . Robots Melted . | . . . . . Combat Hostiles . | . . . . . Parts Melted 3 | . 3 . . . Heat Transferred 1998 | 408 990 . . 600 Parts Sabotaged . | . . . . . Parts Stolen . | . . . . . Parts Stripped . | . . . . . Power Chain Reactions . | . . . . . Alert | -11 -10 -10 -9 -9 ------- Run | Yrd Mat Min Mat Sto Peak Influence 509 | 20 255 55 291 509 Initial 114 | . 13 55 21 114 Average 112 | 9 100 55 96 269 Maximum Alert Level 2 | . 1 . 1 2 Low Security (%) 79 | 100 93 100 75 33 Level 1 18 | . 6 . 24 54 Level 2 1 | . . . . 11 Level 3 . | . . . . . Level 4 . | . . . . . Level 5 . | . . . . . High Security . | . . . . . Max Security . | . . . . . Squads Dispatched 5 | . . . 1 4 Investigation 1 | . . . 1 . Extermination . | . . . . . Reinforcement 4 | . . . . 4 Assault . | . . . . . Garrison . | . . . . . Intercept . | . . . . . Searches Triggered . | . . . . . Construction Impeded 2 | . . . . 2 Haulers Reinforced . | . . . . . Active Scanning Responses . | . . . . . Cargo Convoy Interrupts . | . . . . . Stealth | -11 -10 -10 -9 -9 --------- Run | Yrd Mat Min Mat Sto Distress Signals 4 | . . . 2 2 Communications Jammed . | . . . . . Distress Signals . | . . . . . Times Spotted 52 | . 18 . 18 16 Peak Tracking Total 4 | . 4 . 3 4 Tactical Retreats 6 | . 2 . 3 1 Traps | -11 -10 -10 -9 -9 ------- Run | Yrd Mat Min Mat Sto Traps Triggered 7 | . 4 . 2 1 Indirectly . | . . . . . Trap Hack Attempts . | . . . . . Triggered . | . . . . . Disarmed . | . . . . . Reprogrammed . | . . . . . Reused . | . . . . . Traps Extracted . | . . . . . Installed . | . . . . . Triggered . | . . . . . Machines | -11 -10 -10 -9 -9 ---------- Run | Yrd Mat Min Mat Sto Machines Disabled 2 | . . . 2 . Max in Single Turn 1 | . . . 1 . Machines Repaired . | . . . . . Machines Dismantled . | . . . . . Machines Sabotaged . | . . . . . Overloaded Fab Kills . | . . . . . Hacking | -11 -10 -10 -9 -9 --------- Run | Yrd Mat Min Mat Sto Machines Accessed 4 | . 2 . 2 . Terminals 1 | . 1 . . . Fabricators . | . . . . . Repair Stations 1 | . . . 1 . Recycling Units 1 | . 1 . . . Scanalyzers 1 | . . . 1 . Garrison Access . | . . . . . Total Hacks 9 | . 3 . 6 . Successful 9 | . 3 . 6 . Failed . | . . . . . Catastrophic . | . . . . . Database Lockouts . | . . . . . Manual . | . . . . . Terminals 1 | . 1 . . . Fabricators . | . . . . . Repair Stations 3 | . . . 3 . Recycling Units 2 | . 2 . . . Scanalyzers 3 | . . . 3 . Garrison Access . | . . . . . Terminal Hacks 1 | . 1 . . . Alert Level 1 | . 1 . . . Fabricator Hacks . | . . . . . Repair Station Hacks 3 | . . . 3 . Scan Component 2 | . . . 2 . Repair 1 | . . . 1 . Recycling Unit Hacks 2 | . 2 . . . Recycle Component 1 | . 1 . . . Process 1 | . 1 . . . Scanalyzer 3 | . . . 3 . Insert Component 2 | . . . 2 . Analyze 1 | . . . 1 . Garrison Access Hacks . | . . . . . Unauthorized Hacks . | . . . . . Terminals . | . . . . . Fabricators . | . . . . . Repair Stations . | . . . . . Recycling Units . | . . . . . Scanalyzers . | . . . . . Garrison Access . | . . . . . Data Cores Recovered . | . . . . . Used . | . . . . . Hacking Detections 1 | . . . 1 . Full Trace Events 1 | . . . 1 . Feedback Events . | . . . . . Feedback Blocked . | . . . . . Robot Schematics Acquired . | . . . . . Robots Built . | . . . . . Authchips . | . . . . . Time . | . . . . . Total Robot Build Rating . | . . . . . Part Schematics Acquired 1 | . . . 1 . Parts Built . | . . . . . Authchips . | . . . . . Time . | . . . . . Total Part Build Rating . | . . . . . Parts Repaired 1 | . . . 1 . Time 26 | . . . 26 . Parts Recycled 1 | . 1 . . . Recycled Matter 179 | . 179 . . . Retrieved Matter . | . . . . . Retrieved Components . | . . . . . Parts Scanalyzed 1 | . . . 1 . Part Schematics Acquired 1 | . . . 1 . Parts Damaged . | . . . . . Bothacking | -11 -10 -10 -9 -9 ------------ Run | Yrd Mat Min Mat Sto Used RIF Installer . | . . . . . Robots Hacked . | . . . . . Non-combat . | . . . . . Combat . | . . . . . Robot Hacks Applied . | . . . . . Relay Couplers Released . | . . . . . Fabnet Peak Effective % . | . . . . . Robots Rewired . | . . . . . Allies Hacked . | . . . . . Hacks Repelled . | . . . . . Allies | -11 -10 -10 -9 -9 -------- Run | Yrd Mat Min Mat Sto Total Allies . | . . . . . Largest Group . | . . . . . Highest-Rated Group . | . . . . . Highest-Rated Ally . | . . . . . Total Orders . | . . . . . Ally Attacks . | . . . . . Total Damage . | . . . . . Kills . | . . . . . Allies Corrupted . | . . . . . Allies Melted . | . . . . . Intel | -11 -10 -10 -9 -9 ------- Run | Yrd Mat Min Mat Sto Robot Analysis Total . | . . . . . Derelict Logs Recovered 1 | . . 1 . . Drone Launches . | . . . . . Drone Recoveries . | . . . . . Exploration | -11 -10 -10 -9 -9 ------------- Run | Yrd Mat Min Mat Sto Turns Passed 2771 | 217 797 358 973 426 Spaces Moved 1193 | 110 335 212 393 143 Core 4 | 4 . . . . Treads 1146 | 106 335 212 350 143 Legs 43 | . . . 43 . Wheels . | . . . . . Hover . | . . . . . Flight . | . . . . . Fastest Speed 50 | 50 160 160 160 160 Average Speed 163 | 156 160 160 172 160 Slowest Speed 320 | 160 160 160 320 160 Overloaded Moves . | . . . . . Propulsion Burnouts . | . . . . . Robots Hopped . | . . . . . Cave-ins Triggered 1 | . . . 1 . Exploration Rate (%) 36 | 6 55 55 36 30 Regions Visited 4 Branch Regions 2 Pre-discovered Areas 1 | . . 1 . . Known Exits Taken . | . . . . . Unknown Exits Taken 4 | 1 1 1 1 . Scrap Searched . | . . . . . Spaces Dug . | . . . . . Terrain Destroyed 143 | . 7 . 84 52 Melee . | . . . . . Projectile . | . . . . . AOE 143 | . 7 . 84 52 Terrain Rammed . | . . . . . Walls Destroyed . | . . . . . Machines Disabled . | . . . . . Actions | -11 -10 -10 -9 -9 --------- Run | Yrd Mat Min Mat Sto Total 1721 | 135 526 229 572 259 Wait 236 | 1 131 16 58 30 Move 1189 | 109 334 211 392 143 Hop . | . . . . . Pick Up 38 | 7 11 . 14 6 Fast Attach 12 | 7 2 . . 3 Attach 16 | 1 . . 10 5 Detach 3 | 1 . . 2 . Swap 21 | . 2 . 13 6 Drop 14 | . 7 . 6 1 Fire 189 | 9 39 1 76 64 Melee . | . . . . . Ram . | . . . . . Kick . | . . . . . Crush 2 | . . . 1 1 Escape Stasis . | . . . . . Rewire 1 | . . 1 . . Trap . | . . . . . Miscellaneous . | . . . . . Route ------- -11/Scrapyard -10/Materials (discovered 3 exits: *Mat x2 / [*Min]) -10/Mines -9/Materials (discovered 2 exits: [*Min] / [*Sto]) -9/Storage History --------- Turn | Location | Event 51 | -11/Scrapyard | Discovered new exit (range 15) 218 | -11/Scrapyard | Entered Materials 315 | -10/Materials | Build established: Mutant 483 | -10/Materials | Discovered new exit (range 15) 745 | -10/Materials | Discovered new exit (range 14) 836 | -10/Materials | Discovered new exit (range 15) 1015 | -10/Materials | Entered Mines 1025 | -10/Mines | Met a Derelict bent on vengeance 1313 | -10/Mines | Discovered new exit (range 12) 1373 | -10/Mines | Entered Materials 1373 | -9/Materials | Evolved 2 slots: Propulsion x1, Utility x1 1479 | -9/Materials | Repaired Grenade Launcher 2030 | -9/Materials | Discovered new exit (range 14) 2205 | -9/Materials | Discovered new exit (range 15) 2315 | -9/Materials | Crushed by falling debris 2346 | -9/Materials | Entered Storage 2407 | -9/Storage | Core integrity fell below 50% 2602 | -9/Storage | Core integrity fell below 20% 2772 | -9/Storage | Destroyed by Y-45 Defender with Heavy Assault Rifle Last Messages --------------- 02728_ G-34 Mercenary destroyed. 02731_ Acquired 36 matter. 02732_ Acquired 57 matter. 02736_ U-05 Engineer builds a Door. 02737_ Acquired 39 matter. 02746_ K-01 Serf collects debris. 02748_ Acquired Heat Sink. 02750_ K-01 Serf collects debris. 02751_ R-06 Scavenger collects Beam Rifle. 02754_ R-06 Scavenger collects Lgt. Treads. 02754_ K-01 Serf collects debris. 02760_ R-06 Scavenger destroyed. 02761_ K-01 Serf collects debris. 02763_ K-01 Serf destroyed. 02765_ K-01 Serf collects debris. 02766_ Acquired 7 matter. 02767_ R-06 Scavenger collects Lgt. Treads. 02767_ Acquired 25 matter. 02768_ K-01 Serf collects debris. 02770_ System corrupted: Energy discharge (-24). Map ----- +----------------------------------------------------+ | ??????# ???????? | | ??????# #####+#########+##/##?????????? | | ??????### # ! # ?????????????? | | ????????## # # """""????????????? | | ?????????## # # """""????????????? | | ??????????### % # """"" ##?????????? | | ????????????# # #?????????? | | ????????????+ = """"" #??????????? | | ???????????##[ ! = # """"?????????????? | | ????????????# * !! """"?????????????? | | ????????????########+## #??????????? | | ???????????????????# ###"Y"#T###??????????? | | ???????????????????# #??"""#?#????????????? | | ???????????????????# #???###??????????????? | | ???????????????????# #????????????????????? | | ??????????????#+#### #????????????????????? | | ?????# ###### u #????????????????????? | | ?????# +????????????????????? | | ?????# ###### ^ ##????????????????????? | | ??????????????## ##????????????????????? | | ????????######?# ##????????????????????? | | ????????# ?# ! ##????????????????????? | | ????????# #[% ########??????????????? | | ????????# # * r#*""" #??????????????? | | ????????# #=k # """ #??????????????? | | ????????#]! !+ @ + """ #??????????????? | | ????????# ] # =!#== #??????????????? | | ????????#### /##[ *# #??????????????? | | ???########## ! # #??????????????? | | ?# #%!Y############??????????????? | | ??# #[ # #????????????????? | | ??# """ """ # ## #????????????????? | | ?????"" """ + ## #????????????????? | | ?????"" """ # ## #????????????????? | | ????? # ## #????????????????? | | ??? ?# ## #????????????????? | | ??# ? ??# ## #????????????????? | | ??##??###???# #? #????????????????? | | ????????????# #? #????????????????? | | ????????????# #? #????????????????? | | ????????????# #? #????????????????? | | ???????????? ?###+####????????????????? | | ???????????? ?????????????????????????? | | ???????????? T ????????????????????????? | | ???????????? ????????????????????????? | | ???????????# #????????????????????????? | | ????????????######????????????????????????? | | ??????????????????????????????????????????? | | ??????????????????????????????????????????? | | ??????????????????????????????????????????? | +----------------------------------------------------+ Best States ------------- Heat Dissipation 28 Energy Generation 14 Energy Capacity 280 Matter Stores 300 Matter Capacity 300 Sight Range 16 Terrain Scan Range 16 Terrain Scan Density 10 Armor Coverage 450 Evasion (%) 40 Recoil Reduction 3 Item Schematics ----------------- Med. Armor Plating | -9/Materials | Scanalyzed Robot Schematics ------------------ None Fabricated ------------ Nothing Alien Tech Used ----------------- None Achievements -------------- Hey, That's Mine! Unlikely Earthworm Challenges ------------ None Game ------ Seed FocalMicrodissipatorCycler Manual? 0 Play Time 00:31:40 Cumulative 6.5 hours Start 2024.11.03 @ 23:15:33 End 2024.11.03 @ 23:45:09 Sessions 1 Manual Loads 0 Difficulty Rogue Special Mode None Game No. 29 Rogue 29 Adventurer 0 Explorer 0 Win Type - Total 0 Types 0/0/0/0/0/0/0/0/0 Lore% 5 Gallery% 13 Achievement% 11 Wizard Run 0 Options --------- Layout 1 ASCII 0 Keyboard 0 Movement Numpad Keybinds 0 Fullscreen 1 Font 24/Smallcaps Map View 50x35 Zoom Use 0% Tactical HUD 1 Map Filters NONE Filters NONE Steam 1 RUN: 543853de-3d06-41a5-9360-81a05d0c347b